fUSD/lending_fUSD_20240408
["ID","MTS","AMOUNT","RATE_DAILY","PERIOD"]
[321902392,1712601046911,-1053.70087745,0.00026447,2]
[321902395,1712601046921,-152.32963548,0.00026453,2]
[321902397,1712601046931,-151.27666646,0.00026469,2]
[321902399,1712601046941,-356.22204606,0.0002648,2]
[321902401,1712601046952,-151.27666646,0.00026517,2]
[321902403,1712601046962,-234.37434674,0.00026526,2]
[321902405,1712601046972,-152.42546696,0.00026531,2]
[321902406,1712601046982,-150.0,0.00026564,2]
[321902408,1712601046992,-152.32963548,0.0002657,2]
[321902410,1712601047002,-635.8,0.00026575,2]
[321902412,1712601047012,-10385.51,0.00026575,2]
[321902414,1712601047022,-306.68,0.00026575,2]
[321902416,1712601047032,-13991.31,0.00026575,2]
[321902418,1712601047042,-500.0,0.00026575,2]
[321902420,1712601047051,-500.0,0.00026575,2]
[321902422,1712601047060,-2046.49,0.00026575,2]
[321902425,1712601047071,-582.04,0.00026575,2]
[321902427,1712601047083,-500.0,0.00026575,2]
[321902429,1712601047092,-1031.92,0.00026575,2]
[321902431,1712601047101,-2887.28,0.00026575,2]
[321902433,1712601047111,-1332.48,0.00026575,2]
[321902435,1712601047120,-4694.59,0.00026575,2]
[321902436,1712601047135,-1162.05,0.00026575,2]
[321902438,1712601047144,-1062.73,0.00026575,2]
[321902440,1712601047153,-1146.0,0.00026575,2]
[321902442,1712601047163,-3355.13,0.00026575,2]
[321902444,1712601047173,-1066.93,0.00026575,2]
[321902446,1712601047184,-4502.96,0.00026575,2]
[321902448,1712601047193,-11226.53,0.00026575,2]
[321902450,1712601047202,-1874.46,0.00026575,2]
[321902452,1712601047211,-500.0,0.00026575,2]
[321902454,1712601047220,-3506.41,0.00026575,2]
[321902456,1712601047231,-500.0,0.00026575,2]
[321902459,1712601047242,-500.0,0.00026575,2]
[321902461,1712601047253,-2503.14,0.00026575,2]
[321902463,1712601047263,-500.0,0.00026575,2]
[321902464,1712601047273,-500.0,0.00026575,2]
[321902467,1712601047283,-1848.72,0.00026575,2]
[321902468,1712601047293,-500.0,0.00026575,2]
[321902471,1712601047304,-2620.04,0.00026575,2]
[321902473,1712601047315,-1713.66,0.00026575,2]
[321902475,1712601047325,-500.0,0.00026575,2]
[321902476,1712601047336,-2931.18,0.00026575,2]
[321902478,1712601047348,-350.64,0.00026575,2]
[321902480,1712601047358,-675.55,0.00026575,2]
[321902483,1712601047369,-1665.73,0.00026575,2]
[321902484,1712601047383,-587.58,0.00026575,2]
[321902486,1712601047392,-7876.03,0.00026575,2]
[321902488,1712601047402,-500.0,0.00026575,2]
[321902490,1712601047412,-332466.4946,0.00026576,2]
[321902492,1712601047423,-1500.0,0.0002658,2]
[321902494,1712601047432,-150.0,0.0002658,2]
[321902496,1712601047443,-1500.0,0.00026595,2]
[321902498,1712601047452,-1500.0,0.00026595,2]
[321902500,1712601047461,-1500.0,0.00026596,2]
[321902502,1712601047470,-150.0,0.00026606,2]
[321902504,1712601047481,-1500.0,0.0002661,2]
[321902506,1712601047491,-150.0,0.00026611,2]
[321902508,1712601047501,-6682.39,0.00026661,2]
[321902510,1712601047510,-500.0,0.00026661,2]
[321902512,1712601047520,-26595.78,0.00026661,2]
[321902515,1712601047530,-2719.97,0.00026661,2]
[321902517,1712601047539,-6388.82,0.00026661,2]
[321902519,1712601047549,-10193.41,0.00026661,2]
[321902521,1712601047558,-500.0,0.00026661,2]
[321902523,1712601047568,-4568.66,0.00026661,2]
[321902524,1712601047578,-5095.18,0.00026661,2]
[321902526,1712601047587,-4855.61,0.00026661,2]
[321902528,1712601047597,-2745.63,0.00026661,2]
[321902530,1712601047607,-500.0,0.00026661,2]
[321902533,1712601047616,-4890.28,0.00026661,2]
[321902535,1712601047627,-500.0,0.00026661,2]
[321902536,1712601047636,-552.04,0.00026661,2]
[321902538,1712601047646,-11242.67,0.00026661,2]
[321902541,1712601047656,-1373.57,0.00026661,2]
[321902543,1712601047666,-2559.82,0.00026661,2]
[321902544,1712601047676,-517.17704126,0.00026661,2]
[321902547,1712601047686,-604.98,0.00026661,2]
[321902548,1712601047696,-500.0,0.00026661,2]
[321902551,1712601047706,-500.0,0.00026661,2]
[321902552,1712601047717,-5541.45,0.00026661,2]
[321902554,1712601047728,-500.0,0.00026661,2]
[321902556,1712601047738,-500.0,0.00026661,2]
[321902559,1712601047748,-500.0,0.00026661,2]
[321902561,1712601047758,-2781.54,0.00026661,2]
[321902562,1712601047768,-500.0,0.00026661,2]
[321902564,1712601047778,-379.43172073,0.00026661,2]
[321902567,1712601047788,-500.0,0.00026661,2]
[321902569,1712601047796,-500.0,0.00026661,2]
[321902571,1712601047805,-500.0,0.00026661,2]
[321902572,1712601047815,-150.0,0.0002667,2]
[321902575,1712601047824,-156.73458952,0.00026678,2]
[321902576,1712601047833,-155.78441962,0.00026681,2]
[321902578,1712601047843,-300.0,0.00026689,2]
[321902581,1712601047854,-1500.0,0.00026767,2]
[321902582,1712601047863,-169.53423243,0.0002677,2]
[321902584,1712601047873,-200.0,0.0002678,2]
[321902586,1712601047883,-1000.0,0.0002678,2]
[321902588,1712601047893,-500.0,0.0002678,2]
[321902590,1712601047903,-189.02724929,0.00026793,2]
[321902592,1712601047912,-1500.0,0.00026794,2]
[321902594,1712601047922,-200.0,0.00026806,2]
[321902596,1712601047932,-169.53423243,0.00026819,2]
[321902598,1712601047942,-4892.6,0.00026823,2]
[321902600,1712601047952,-155.78441962,0.00026829,2]
[321902602,1712601047961,-150.0,0.00026843,2]
[321902604,1712601047970,-1500.0,0.00026845,2]
[321902606,1712601047980,-10385.51,0.00026849,2]
[321902608,1712601047991,-13991.31,0.00026849,2]
[321902610,1712601048003,-500.0,0.00026849,2]
[321902612,1712601048014,-500.0,0.00026849,2]
[321902614,1712601048026,-2046.49,0.00026849,2]
[321902616,1712601048037,-582.04,0.00026849,2]
[321902619,1712601048048,-500.0,0.00026849,2]
[321902621,1712601048058,-1031.92,0.00026849,2]
[321902622,1712601048069,-2887.28,0.00026849,2]
[321902624,1712601048081,-1332.48,0.00026849,2]
[321902627,1712601048092,-4694.59,0.00026849,2]
[321902629,1712601048102,-1162.05,0.00026849,2]
[321902630,1712601048113,-1062.73,0.00026849,2]
[321902633,1712601048123,-1146.0,0.00026849,2]
[321902634,1712601048133,-3355.13,0.00026849,2]
[321902636,1712601048142,-1066.93,0.00026849,2]
[321902639,1712601048152,-4502.96,0.00026849,2]
[321902641,1712601048162,-11226.53,0.00026849,2]
[321902643,1712601048173,-1874.46,0.00026849,2]
[321902644,1712601048185,-500.0,0.00026849,2]
[321902647,1712601048195,-3506.41,0.00026849,2]
[321902649,1712601048205,-500.0,0.00026849,2]
[321902651,1712601048215,-500.0,0.00026849,2]
[321902652,1712601048224,-2503.14,0.00026849,2]
[321902655,1712601048233,-500.0,0.00026849,2]
[321902657,1712601048250,-500.0,0.00026849,2]
[321902658,1712601048261,-1848.72,0.00026849,2]
[321902659,1712601048270,-500.0,0.00026849,2]
[321902660,1712601048280,-2620.04,0.00026849,2]
[321902661,1712601048289,-1713.66,0.00026849,2]
[321902662,1712601048299,-500.0,0.00026849,2]
[321902663,1712601048309,-2931.18,0.00026849,2]
[321902664,1712601048319,-675.55,0.00026849,2]
[321902666,1712601048330,-1665.73,0.00026849,2]
[321902668,1712601048339,-587.58,0.00026849,2]
[321902670,1712601048350,-7876.03,0.00026849,2]
[321902672,1712601048359,-500.0,0.00026849,2]
[321902674,1712601048369,-989.368,0.00026857,2]
[321902676,1712601048383,-859.582,0.00026857,2]
[321902678,1712601048392,-442.0,0.00026857,2]
[321902680,1712601048403,-214.0,0.00026857,2]
[321902682,1712601048413,-354.0,0.00026857,2]
[321902684,1712601048424,-1500.0,0.00026888,2]
[321902686,1712601048434,-693.01,0.00026899,2]
[321902688,1712601048444,-215.91199963,0.00026916,2]
[321902690,1712601048453,-189.02724929,0.00026923,2]
[321902692,1712601048463,-150.0,0.00026923,2]
[321902694,1712601048473,-1500.0,0.0002693,2]
[321902696,1712601048484,-427.90452,0.0002693,2]
[321902698,1712601048493,-6682.39,0.00026935,2]
[321902700,1712601048503,-500.0,0.00026935,2]
[321902702,1712601048512,-26595.78,0.00026935,2]
[321902704,1712601048521,-2719.97,0.00026935,2]
[321902706,1712601048530,-6388.82,0.00026935,2]
[321902708,1712601048539,-10193.41,0.00026935,2]
[321902710,1712601048548,-500.0,0.00026935,2]
[321902712,1712601048558,-4568.66,0.00026935,2]
[321902714,1712601048567,-5095.18,0.00026935,2]
[321902716,1712601048576,-4855.61,0.00026935,2]
[321902718,1712601048585,-2745.63,0.00026935,2]
[321902720,1712601048594,-500.0,0.00026935,2]
[321902722,1712601048603,-4890.28,0.00026935,2]
[321902724,1712601048612,-500.0,0.00026935,2]
[321902726,1712601048623,-552.04,0.00026935,2]
[321902728,1712601048633,-11242.67,0.00026935,2]
[321902730,1712601048642,-1373.57,0.00026935,2]
[321902732,1712601048652,-2559.82,0.00026935,2]
[321902734,1712601048661,-604.98,0.00026935,2]
[321902736,1712601048671,-500.0,0.00026935,2]
[321902738,1712601048680,-500.0,0.00026935,2]
[321902740,1712601048690,-500.0,0.00026935,2]
[321902742,1712601048700,-5541.45,0.00026935,2]
[321902744,1712601048710,-500.0,0.00026935,2]
[321902746,1712601048719,-500.0,0.00026935,2]
[321902766,1712601048883,-2781.54,0.00026935,2]
[321902769,1712601048910,-500.0,0.00026935,2]
[321902771,1712601048919,-500.0,0.00026935,2]
[321902773,1712601048928,-500.0,0.00026935,2]
[321902775,1712601048938,-1200.0,0.00026936,2]
[321902777,1712601048947,-700.0,0.00026936,2]
[321902779,1712601048956,-500.0,0.00026936,2]
[321902781,1712601048965,-1500.0,0.00026938,2]
[321902783,1712601048974,-1500.0,0.00026949,2]
[321902785,1712601048984,-215.91199963,0.00026987,2]
[321902787,1712601048993,-150.0,0.00026988,2]
[321902789,1712601049002,-1500.0,0.00026994,2]
[321902791,1712601049012,-749.9566,0.00026996,2]
[321902793,1712601049021,-399.08,0.00026996,2]
[321902795,1712601049030,-693.01,0.00026998,2]
[321902797,1712601049040,-693.01,0.00026998,2]
[321902799,1712601049049,-693.01,0.00026998,2]
[321902801,1712601049059,-693.01,0.00026999,2]
[321902803,1712601049068,-1000.0,0.00027,2]
[321902805,1712601049078,-150.0,0.00027,2]
[321902807,1712601049087,-150.0,0.00027007,2]
[321902809,1712601049096,-150.0,0.0002701,2]
[321902812,1712601049106,-1500.0,0.00027017,2]
[321902814,1712601049115,-151.41342262,0.00027022,2]
[321902816,1712601049125,-300.0,0.00027036,2]
[321902818,1712601049134,-150.0,0.00027041,2]
[321902820,1712601049143,-150.0,0.00027054,2]
[321902822,1712601049152,-150.0,0.00027063,2]
[321902824,1712601049162,-154.04,0.00027068,15]
[321902826,1712601049175,-1500.0,0.00027072,2]
[321902828,1712601049185,-159.29221084,0.00027079,2]
[321902830,1712601049195,-7500.0,0.00027093,2]
[321902832,1712601049204,-157.84390401,0.00027093,2]
[321902834,1712601049214,-229.83796018,0.00027094,3]
[321902836,1712601049223,-168.77069705,0.00027094,2]
[321902838,1712601049233,-152.70358675,0.00027094,2]
[321902840,1712601049242,-500.0,0.00027095,2]
[321902842,1712601049253,-500.0,0.00027095,2]
[321902844,1712601049263,-1018.42,0.00027095,2]
[321902846,1712601049273,-500.0,0.00027095,2]
[321902848,1712601049282,-8774.07,0.00027095,2]
[321902850,1712601049291,-508.14159101,0.00027095,2]
[321902852,1712601049301,-500.0,0.00027095,2]
[321902854,1712601049310,-718.75,0.00027095,2]
[321902856,1712601049320,-5187.87,0.00027095,2]
[321902858,1712601049329,-500.0,0.00027095,2]
[321902860,1712601049339,-500.0,0.00027095,2]
[321902862,1712601049348,-1758.61,0.00027095,2]
[321902864,1712601049358,-500.0,0.00027095,2]
[321902866,1712601049368,-615.26,0.00027095,2]
[321902868,1712601049378,-500.0,0.00027095,2]
[321902869,1712601049388,-500.0,0.00027095,2]
[321902870,1712601049399,-500.0,0.00027095,2]
[321902871,1712601049408,-2654.7,0.00027095,2]
[321902872,1712601049417,-432.86549925,0.00027095,2]
[321902873,1712601049427,-4369.15,0.00027095,2]
[321902874,1712601049436,-5780.38,0.00027095,2]
[321902875,1712601049446,-1720.5,0.00027095,2]
[321902876,1712601049456,-500.0,0.00027095,2]
[321902877,1712601049466,-435.78332461,0.00027095,2]
[321902878,1712601049475,-500.0,0.00027095,2]
[321902879,1712601049485,-6956.62,0.00027095,2]
[321902880,1712601049494,-2138.81,0.00027095,2]
[321902881,1712601049504,-521.87946838,0.00027095,2]
[321902882,1712601049513,-500.0,0.00027095,2]
[321902883,1712601049522,-2380.47,0.00027095,2]
[321902884,1712601049532,-504.36478064,0.00027095,2]
[321902885,1712601049541,-1542.02,0.00027095,2]
[321902886,1712601049550,-4794.54,0.00027095,2]
[321902887,1712601049559,-500.0,0.00027095,2]
[321902888,1712601049569,-2804.36,0.00027095,2]
[321902889,1712601049578,-5486.46,0.00027095,2]
[321902890,1712601049586,-649.36415211,0.00027095,2]
[321902891,1712601049596,-500.0,0.00027095,2]
[321902892,1712601049605,-2082.31,0.00027095,2]
[321902893,1712601049614,-500.0,0.00027095,2]
[321902894,1712601049623,-500.0,0.00027095,2]
[321902895,1712601049633,-633.92,0.00027095,2]
[321902896,1712601049642,-500.0,0.00027095,2]
[321902897,1712601049651,-14872.5057,0.00027096,2]
[321902898,1712601049660,-72480.3045,0.00027096,2]
[321902899,1712601049670,-2275.6305,0.00027096,2]
[321902900,1712601049680,-258.92,0.000271,2]
[321902901,1712601049689,-150.0,0.000271,2]
[321902902,1712601049698,-481.0,0.000271,11]
[321902903,1712601049710,-394.0,0.000271,2]
[321902904,1712601049720,-187.0,0.000271,11]
[321902905,1712601049730,-150.0,0.000271,2]
[321902906,1712601049740,-1500.0,0.00027114,2]
[321902907,1712601049750,-10385.51,0.00027123,2]
[321902908,1712601049759,-13991.31,0.00027123,2]
[321902909,1712601049769,-500.0,0.00027123,2]
[321902910,1712601049778,-500.0,0.00027123,2]
[321902911,1712601049787,-2046.49,0.00027123,2]
[321902912,1712601049805,-582.04,0.00027123,2]
[321902913,1712601049815,-500.0,0.00027123,2]
[321902914,1712601049824,-1031.92,0.00027123,2]
[321902915,1712601049833,-2887.28,0.00027123,2]
[321902916,1712601049842,-1332.48,0.00027123,2]
[321902917,1712601049852,-4694.59,0.00027123,2]
[321902918,1712601049862,-1162.05,0.00027123,2]
[321902919,1712601049872,-1062.73,0.00027123,2]
[321902920,1712601049882,-1146.0,0.00027123,2]
[321902921,1712601049891,-3355.13,0.00027123,2]
[321902922,1712601049901,-1066.93,0.00027123,2]
[321902923,1712601049910,-4502.96,0.00027123,2]
[321902924,1712601049921,-11226.53,0.00027123,2]
[321902925,1712601049932,-1874.46,0.00027123,2]
[321902926,1712601049942,-500.0,0.00027123,2]
[321902927,1712601049952,-3506.41,0.00027123,2]
[321902928,1712601049962,-500.0,0.00027123,2]
[321902929,1712601049972,-500.0,0.00027123,2]
[321902930,1712601049981,-2503.14,0.00027123,2]
[321902931,1712601049991,-500.0,0.00027123,2]
[321902932,1712601050001,-500.0,0.00027123,2]
[321902933,1712601050011,-1848.72,0.00027123,2]
[321902934,1712601050020,-500.0,0.00027123,2]
[321902935,1712601050030,-2620.04,0.00027123,2]
[321902936,1712601050039,-1713.66,0.00027123,2]
[321902937,1712601050050,-554.01488915,0.00027123,2]
[321902938,1712601050060,-2931.18,0.00027123,2]
[321902939,1712601050070,-675.55,0.00027123,2]
[321902940,1712601050079,-1665.73,0.00027123,2]
[321902941,1712601050088,-587.58,0.00027123,2]
[321902942,1712601050098,-7876.03,0.00027123,2]
[321902943,1712601050108,-500.0,0.00027123,2]
[321902944,1712601050117,-1500.0,0.00027135,2]
[321902945,1712601050128,-1500.0,0.00027135,2]
[321902946,1712601050137,-151.41342262,0.00027136,2]
[321902947,1712601050147,-1500.0,0.00027138,2]
[321902948,1712601050156,-150.0,0.00027159,2]
[321902949,1712601050166,-308.0,0.00027167,15]
[321902950,1712601050176,-11363.2619678,0.00027168,4]
[321902951,1712601050187,-150.0,0.00027168,2]
[321902952,1712601050196,-1500.0,0.00027172,2]
[321902953,1712601050206,-300.0,0.00027176,2]
[321902954,1712601050217,-308.0,0.00027177,15]
[321902955,1712601050226,-150.0,0.0002718,2]
[321902956,1712601050235,-308.0,0.00027187,15]
[321902957,1712601050246,-9495.4005327,0.0002719,2]
[321902958,1712601050257,-150.0,0.00027191,2]
[321902959,1712601050266,-500.0,0.00027192,2]
[321902960,1712601050276,-269.67589838,0.00027192,2]
[321902961,1712601050285,-500.0,0.00027192,2]
[321902962,1712601050295,-500.0,0.00027192,2]
[321902963,1712601050304,-500.0,0.00027192,2]
[321902964,1712601050314,-1144.88,0.00027192,2]
[321902965,1712601050323,-500.0,0.00027192,2]
[321902966,1712601050332,-4769.33,0.00027192,2]
[321902967,1712601050341,-508.23880696,0.00027192,2]
[321902968,1712601050350,-500.0,0.00027192,2]
[321902969,1712601050360,-479.12752941,0.00027192,2]
[321902970,1712601050369,-500.0,0.00027192,2]
[321902971,1712601050380,-617.53379125,0.00027192,2]
[321902972,1712601050389,-500.0,0.00027192,2]
[321902973,1712601050399,-13402.34,0.00027192,2]
[321902974,1712601050409,-13179.14,0.00027192,2]
[321902975,1712601050418,-500.0,0.00027192,2]
[321902976,1712601050428,-693.01,0.00027192,2]
[321902977,1712601050437,-500.0,0.00027192,2]
[321902978,1712601050446,-1068.83,0.00027192,2]
[321902979,1712601050456,-500.0,0.00027192,2]
[321902980,1712601050465,-446.96311589,0.00027192,2]
[321902981,1712601050474,-4471.09,0.00027192,2]
[321902982,1712601050484,-2563.56,0.00027192,2]
[321902983,1712601050493,-500.0,0.00027192,2]
[321902984,1712601050502,-500.0,0.00027192,2]
[321902985,1712601050512,-500.0,0.00027192,2]
[321902986,1712601050521,-500.0,0.00027192,2]
[321902987,1712601050531,-500.0,0.00027192,2]
[321902988,1712601050540,-204.36445261,0.00027192,2]
[321902989,1712601050550,-500.0,0.00027192,2]
[321902990,1712601050560,-580.96890189,0.00027192,2]
[321902991,1712601050570,-500.0,0.00027192,2]
[321902992,1712601050579,-500.0,0.00027192,2]
[321902993,1712601050589,-4267.67,0.00027192,2]
[321902994,1712601050598,-4145.31,0.00027192,2]
[321902995,1712601050608,-500.0,0.00027192,2]
[321902996,1712601050617,-34116.9,0.00027192,2]
[321902997,1712601050628,-447.46396559,0.00027192,2]
[321902998,1712601050639,-500.0,0.00027192,2]
[321902999,1712601050651,-500.0,0.00027192,2]
[321903000,1712601050660,-2550.36,0.00027192,2]
[321903001,1712601050670,-500.0,0.00027192,2]
[321903002,1712601050679,-500.0,0.00027192,2]
[321903003,1712601050689,-500.0,0.00027192,2]
[321903004,1712601050698,-3611.71,0.00027192,2]
[321903005,1712601050708,-247.16627834,0.00027192,2]
[321903006,1712601050717,-500.0,0.00027192,2]
[321903007,1712601050727,-500.0,0.00027192,2]
[321903008,1712601050736,-1183.28,0.00027192,2]
[321903009,1712601050746,-401.73991116,0.00027192,2]
[321903010,1712601050755,-710.13,0.00027192,2]
[321903011,1712601050765,-2175.84,0.00027192,2]
[321903012,1712601050775,-500.0,0.00027192,2]
[321903013,1712601050784,-6937.14,0.00027192,2]
[321903014,1712601050794,-897.16,0.00027192,2]
[321903015,1712601050805,-500.0,0.00027192,2]
[321903016,1712601050815,-606.04,0.00027192,2]
[321903017,1712601050824,-500.0,0.00027192,2]
[321903018,1712601050834,-2756.58,0.00027192,2]
[321903019,1712601050844,-211.15975309,0.00027193,2]
[321903020,1712601050853,-504415.03754589,0.00027193,5]
[321903021,1712601050863,-510195.67377407,0.00027193,2]
[321903022,1712601050872,-151.0,0.00027193,7]
[321903023,1712601050883,-990.6155768,0.00027194,2]
[321903024,1712601050892,-191.60394835,0.00027194,2]
[321903025,1712601050902,-155.00000813,0.00027194,2]
[321903026,1712601050913,-1240.06540618,0.00027194,2]
[321903027,1712601050923,-208.47667207,0.00027194,2]
[321903028,1712601050933,-191.4776989,0.00027194,2]
[321903029,1712601050943,-269.92509742,0.00027194,2]
[321903030,1712601050953,-4465.1280569,0.00027194,2]
[321903031,1712601050963,-1890.05898558,0.00027194,2]
[321903032,1712601050974,-982.48816381,0.00027194,2]
[321903033,1712601050985,-155.0,0.00027194,2]
[321903034,1712601050996,-155.0,0.00027195,2]
[321903035,1712601051007,-1012.34270929,0.00027195,3]
[321903036,1712601051018,-313.50702915,0.00027195,2]
[321903037,1712601051028,-193.57206001,0.00027195,2]
[321903038,1712601051039,-681.90393791,0.00027195,2]
[321903039,1712601051049,-654.75327641,0.00027195,2]
[321903040,1712601051059,-528.69679371,0.00027195,2]
[321903041,1712601051386,-1944.89571205,0.00027195,2]
[321903042,1712601051396,-3350.74916906,0.00027195,2]
[321903043,1712601051406,-206.59266165,0.00027196,2]
[321903044,1712601051416,-3976.48598421,0.00027196,2]
[321903045,1712601051426,-693.01,0.00027196,2]
[321903046,1712601051435,-693.01,0.00027196,2]
[321903047,1712601051444,-693.01,0.00027196,2]
[321903048,1712601051454,-693.01,0.00027196,2]
[321903049,1712601051464,-693.01,0.00027196,2]
[321903050,1712601051475,-693.01,0.00027196,2]
[321903051,1712601051486,-693.01,0.00027196,2]
[321903052,1712601051496,-693.01,0.00027196,2]
[321903053,1712601051507,-693.01,0.00027196,2]
[321903054,1712601051518,-693.01,0.00027196,2]
[321903055,1712601051529,-693.01,0.00027196,2]
[321903056,1712601051540,-693.13827898,0.00027196,2]
[321903057,1712601051552,-240242.95448281,0.00027197,2]
[321903058,1712601052534,-738.57999998,0.00021457,2]
[321903059,1712601052601,-261.42000002,0.00021457,2]
[321903060,1712601052612,-2462.68515412,0.00024656,2]
[321903061,1712601052622,-500.0,0.00024657,2]
[321903062,1712601052635,-500.0,0.00024931,2]
[321903063,1712601052644,-500.0,0.00025205,2]
[321903064,1712601052656,-500.0,0.00025205,2]
[321903065,1712601052666,-500.0,0.00025479,2]
[321903066,1712601052677,-500.0,0.00025479,2]
[321903067,1712601052689,-500.0,0.00025753,2]
[321903068,1712601052699,-500.0,0.00025753,2]
[321903069,1712601052710,-500.0,0.00026027,2]
[321903070,1712601052722,-500.0,0.00026027,2]
[321903071,1712601052734,-645.92,0.00026301,2]
[321903072,1712601052743,-500.0,0.00026387,2]
[321903073,1712601052754,-510.0151921,0.00026661,2]
[321903074,1712601052764,-500.0,0.00027095,2]
[321903075,1712601052773,-4045.72764426,0.00027197,2]
[321903076,1712601052786,-6254.70780033,0.00027197,2]
[321903077,1712601053036,-500.0,0.00026301,2]
[321903078,1712601053046,-500.0,0.00027095,2]
[321903079,1712601053056,-948.0,0.00027197,2]
[321903086,1712601402828,154.04,0.00024329,15]
[321903087,1712601788255,-2462.68515412,0.00020697,2]
[321903088,1712601788277,-2034.835608,0.00020698,2]
[321903089,1712601995746,154.04,0.00024329,15]
[321903119,1712602233740,-282.1782915,0.00019777,2]
[321903120,1712602233750,-253.65732374,0.00019875,2]
[321903121,1712602233760,-785.42521986,0.00019876,2]
[321903122,1712602233769,-150.0,0.00020181,2]
[321903123,1712602233779,-661.63,0.00020862,2]
[321903124,1712602233789,-2034.835608,0.0002091,2]
[321903125,1712602233798,-157.8568817,0.00021016,2]
[321903126,1712602233807,-7693.78,0.00021427,2]
[321903127,1712602233817,-8692.21611299,0.00021427,2]
[321903128,1712602233829,-68365.60388701,0.00021427,2]
[321903129,1712602233839,-27131.09168781,0.00021427,2]
[321903130,1712602233848,-554.13,0.00021435,2]
[321903131,1712602233857,-150.99,0.00021435,2]
[321903132,1712602233868,-150.99,0.00021435,2]
[321903133,1712602233877,-1820.45,0.00021435,2]
[321903134,1712602233887,-499.99,0.00021435,2]
[321903135,1712602233897,-702.11007977,0.00021436,2]
[321903136,1712602233907,-300.0,0.00021437,2]
[321903137,1712602233916,-792.09566138,0.00021723,2]
[321903138,1712602233926,-157.85688166,0.00022244,2]
[321903139,1712602233936,-697.86,0.00022407,2]
[321903140,1712602233945,-250.0,0.00022411,2]
[321903141,1712602233955,-250.0,0.00022417,2]
[321903142,1712602233965,-284.5,0.0002242,2]
[321903143,1712602233974,-500.0,0.00022467,2]
[321903144,1712602233985,-507.32,0.00022471,2]
[321903145,1712602233994,-238.6,0.00022587,2]
[321903146,1712602234004,-157.4,0.00022659,2]
[321903147,1712602234013,-211.61,0.00022703,2]
[321903148,1712602234023,-200.0,0.00022789,2]
[321903149,1712602234033,-1000.0,0.00022806,2]
[321903150,1712602234043,-150.99,0.00022812,2]
[321903151,1712602234053,-200.0,0.00022877,2]
[321903152,1712602234063,-500.0,0.00022984,2]
[321903154,1712602234072,-500.0,0.00022984,2]
[321903155,1712602234081,-383.53103376,0.00022984,2]
[321903156,1712602234090,-2639.73,0.00022985,2]
[321903157,1712602234100,-23900.0,0.00022985,2]
[321903158,1712602234109,-920.0,0.00023033,2]
[321903159,1712602234120,-151.41342263,0.00023094,2]
[321903160,1712602234130,-151.93807382,0.00023109,2]
[321903161,1712602234140,-661.63,0.00023126,2]
[321903162,1712602234150,-162.74534146,0.00023133,2]
[321903164,1712602234160,-151.41342263,0.00023263,2]
[321903166,1712602234174,-157.52270774,0.0002334,2]
[321903167,1712602234184,-179.96277071,0.00023452,2]
[321903168,1712602234194,-151.93807382,0.00023453,2]
[321903169,1712602234204,-157.85688166,0.00023471,2]
[321903170,1712602234214,-151.41342263,0.0002355,2]
[321903171,1712602234224,-155.78441962,0.00023625,2]
[321903173,1712602234233,-549.72215727,0.00023645,2]
[321903175,1712602234243,-1468.9714,0.00023645,2]
[321903177,1712602234253,-255.4897,0.00023645,2]